[Event "Titled Tuesday Blitz November 22 Early 2022"]
[White "Madaminov, Mukhiddin"]
[Black "Gilmanov, Mansur"]
[WhiteFideId "14210703"]
[BlackFideId "4166868"]
[WhiteElo "2341"]
[BlackElo "2377"]
[Result "1-0"]
[Round "02"]
[TimeControl "180+1"]
[Date "2022.11.23"]
[WhiteClock "0:01:19"]
[BlackClock "0:00:20"]

1. d4 {[%clk 0:03:00]}  f5 {[%clk 0:02:57]} 2. Bg5 {[%clk 0:03:00]}  Nf6 {[%clk 0:02:54]} 3. Bxf6 {[%clk 0:03:00]}  exf6 {[%clk 0:02:54]} 4. e3 {[%clk 0:03:00]}  d5 {[%clk 0:02:54]} 5. c4 {[%clk 0:03:00]}  Be6 {[%clk 0:02:52]} 6. cxd5 {[%clk 0:02:59]}  Bxd5 {[%clk 0:02:49]} 7. Nc3 {[%clk 0:02:59]}  Bb4 {[%clk 0:02:49]} 8. Ne2 {[%clk 0:02:55]}  O-O {[%clk 0:02:45]} 9. a3 {[%clk 0:02:55]}  Bxc3+ {[%clk 0:02:40]} 10. Nxc3 {[%clk 0:02:56]}  Kh8 {[%clk 0:02:35]} 11. Qc2 {[%clk 0:02:45]}  Nc6 {[%clk 0:02:22]} 12. Qxf5 {[%clk 0:02:37]}  Bf7 {[%clk 0:02:06]} 13. Be2 {[%clk 0:02:33]}  Bg6 {[%clk 0:02:05]} 14. Qf4 {[%clk 0:02:31]}  Ne7 {[%clk 0:01:57]} 15. O-O {[%clk 0:02:26]}  c6 {[%clk 0:01:57]} 16. Rfd1 {[%clk 0:02:19]}  Nd5 {[%clk 0:01:50]} 17. Nxd5 {[%clk 0:02:18]}  Qxd5 {[%clk 0:01:51]} 18. Rac1 {[%clk 0:02:17]}  Rae8 {[%clk 0:01:47]} 19. Bc4 {[%clk 0:02:08]}  Qh5 {[%clk 0:01:38]} 20. f3 {[%clk 0:02:02]}  Bf7 {[%clk 0:01:18]} 21. Kf2 {[%clk 0:02:00]}  Bxc4 {[%clk 0:01:12]} 22. Rxc4 {[%clk 0:01:58]}  f5 {[%clk 0:01:03]} 23. Rc5 {[%clk 0:01:56]}  Qf7 {[%clk 0:00:59]} 24. Rd2 {[%clk 0:01:53]}  Qb3 {[%clk 0:00:50]} 25. h4 {[%clk 0:01:49]}  h6 {[%clk 0:00:32]} 26. h5 {[%clk 0:01:41]}  Rf6 {[%clk 0:00:32]} 27. Re5 {[%clk 0:01:36]}  Ref8 {[%clk 0:00:32]} 28. Re7 {[%clk 0:01:30]}  R6f7 {[%clk 0:00:22]} 29. Qe5 {[%clk 0:01:22]}  Rxe7 {[%clk 0:00:20]} 30. Qxe7 {[%clk 0:01:21]}  Rf7 {[%clk 0:00:21]} 31. Qe8+ {[%clk 0:01:22]}  Kh7 {[%clk 0:00:21]} 32. d5 {[%clk 0:01:19]}  cxd5 {[%clk 0:00:20]} 33. Qxf7 {[%clk 0:01:19]} 1-0


[Site "https://www.chess.com"]

[Event "Titled Tuesday Blitz November 22 Early 2022"]
[White "Makhmudov, Shukhrat"]
[Black "Balabayeva, Xeniya"]
[WhiteFideId "14200775"]
[BlackFideId "13719688"]
[WhiteElo "2135"]
[BlackElo "2041"]
[Result "0-1"]
[Round "02"]
[TimeControl "180+1"]
[Date "2022.11.23"]
[WhiteClock "0:00:04"]
[BlackClock "0:00:06"]

1. e4 {[%clk 0:02:57]}  e5 {[%clk 0:02:57]} 2. Nf3 {[%clk 0:02:57]}  Nf6 {[%clk 0:02:56]} 3. d3 {[%clk 0:02:49]}  Nc6 {[%clk 0:02:54]} 4. Bg5 {[%clk 0:02:46]}  Be7 {[%clk 0:02:53]} 5. Nbd2 {[%clk 0:02:45]}  d5 {[%clk 0:02:52]} 6. Be2 {[%clk 0:02:35]}  Be6 {[%clk 0:02:44]} 7. O-O {[%clk 0:02:23]}  d4 {[%clk 0:02:39]} 8. Nh4 {[%clk 0:02:09]}  Nxe4 {[%clk 0:02:31]} 9. Bxe7 {[%clk 0:02:01]}  Qxe7 {[%clk 0:02:19]} 10. Nxe4 {[%clk 0:01:59]}  Qxh4 {[%clk 0:02:15]} 11. Nc5 {[%clk 0:01:59]}  Qe7 {[%clk 0:01:59]} 12. Nxe6 {[%clk 0:01:36]}  Qxe6 {[%clk 0:01:56]} 13. f4 {[%clk 0:01:33]}  exf4 {[%clk 0:01:14]} 14. Bg4 {[%clk 0:01:15]}  Qd6 {[%clk 0:01:09]} 15. Re1+ {[%clk 0:01:10]}  Ne5 {[%clk 0:01:04]} 16. Qf3 {[%clk 0:01:03]}  O-O {[%clk 0:01:00]} 17. Qxf4 {[%clk 0:01:00]}  Rae8 {[%clk 0:00:49]} 18. Bh3 {[%clk 0:00:33]}  Re7 {[%clk 0:00:26]} 19. Re4 {[%clk 0:00:31]}  Rfe8 {[%clk 0:00:18]} 20. Rxd4 {[%clk 0:00:28]}  Qb6 {[%clk 0:00:18]} 21. Qf2 {[%clk 0:00:25]}  Qxb2 {[%clk 0:00:15]} 22. Rf1 {[%clk 0:00:22]}  f6 {[%clk 0:00:14]} 23. Ra4 {[%clk 0:00:19]}  Nc6 {[%clk 0:00:13]} 24. Bf5 {[%clk 0:00:16]}  Qb6 {[%clk 0:00:09]} 25. d4 {[%clk 0:00:14]}  Rd8 {[%clk 0:00:07]} 26. Qh4 {[%clk 0:00:09]}  g5 {[%clk 0:00:07]} 27. Qg4 {[%clk 0:00:06]}  Rxd4 {[%clk 0:00:07]} 28. Rxd4 {[%clk 0:00:05]}  Qxd4+ {[%clk 0:00:07]} 29. Qxd4 {[%clk 0:00:05]}  Nxd4 {[%clk 0:00:07]} 30. Bd3 {[%clk 0:00:06]}  Kg7 {[%clk 0:00:07]} 31. Rb1 {[%clk 0:00:05]}  b6 {[%clk 0:00:07]} 32. Rb4 {[%clk 0:00:05]}  c5 {[%clk 0:00:07]} 33. Ra4 {[%clk 0:00:05]}  Nc6 {[%clk 0:00:06]} 34. Bb5 {[%clk 0:00:04]}  Nb4 {[%clk 0:00:06]} 35. c3 {[%clk 0:00:04]}  Nd5 {[%clk 0:00:06]} 36. Ra3 {[%clk 0:00:04]}  a5 {[%clk 0:00:05]} 37. Bc4 {[%clk 0:00:04]}  Ne3 {[%clk 0:00:04]} 38. Bb5 {[%clk 0:00:03]}  Nc2 {[%clk 0:00:04]} 39. Rb3 {[%clk 0:00:04]}  Ne3 {[%clk 0:00:02]} 40. Be2 {[%clk 0:00:02]}  Re6 {[%clk 0:00:02]} 41. Bf3 {[%clk 0:00:02]}  f5 {[%clk 0:00:03]} 42. Bb7 {[%clk 0:00:01]}  Kf6 {[%clk 0:00:03]} 43. Kf2 {[%clk 0:00:02]}  f4 {[%clk 0:00:03]} 44. Kf3 {[%clk 0:00:02]}  h5 {[%clk 0:00:03]} 45. Bc8 {[%clk 0:00:03]}  Rd6 {[%clk 0:00:03]} 46. h4 {[%clk 0:00:03]}  Nc4 {[%clk 0:00:02]} 47. hxg5+ {[%clk 0:00:03]}  Kxg5 {[%clk 0:00:03]} 48. Ba6 {[%clk 0:00:03]}  Nd2+ {[%clk 0:00:03]} 49. Kf2 {[%clk 0:00:03]}  Nxb3 {[%clk 0:00:04]} 50. axb3 {[%clk 0:00:04]}  Rd2+ {[%clk 0:00:04]} 51. Kf3 {[%clk 0:00:04]}  Rc2 {[%clk 0:00:04]} 52. c4 {[%clk 0:00:04]}  Rc3+ {[%clk 0:00:05]} 53. Ke4 {[%clk 0:00:04]}  Rxb3 {[%clk 0:00:06]} 54. Bc8 {[%clk 0:00:05]}  a4 {[%clk 0:00:05]} 55. Bd7 {[%clk 0:00:04]}  a3 {[%clk 0:00:06]} 0-1


[Site "https://www.chess.com"]

[Event "Titled Tuesday Blitz November 22 Early 2022"]
[White "Malyi, Viacheslav"]
[Black "Babazada, Khazar"]
[WhiteFideId "14123983"]
[BlackFideId "13413554"]
[WhiteElo "2291"]
[BlackElo "2359"]
[Result "1/2-1/2"]
[Round "02"]
[TimeControl "180+1"]
[Date "2022.11.23"]
[WhiteClock "0:00:07"]
[BlackClock "0:00:42"]

1. e4 {[%clk 0:03:00]}  e6 {[%clk 0:02:49]} 2. d4 {[%clk 0:03:00]}  d5 {[%clk 0:02:50]} 3. Nc3 {[%clk 0:03:00]}  Nf6 {[%clk 0:02:50]} 4. Bg5 {[%clk 0:02:58]}  dxe4 {[%clk 0:02:47]} 5. Nxe4 {[%clk 0:02:57]}  Nbd7 {[%clk 0:02:47]} 6. Nf3 {[%clk 0:02:56]}  Be7 {[%clk 0:02:47]} 7. Bxf6 {[%clk 0:02:54]}  Nxf6 {[%clk 0:02:45]} 8. Nxf6+ {[%clk 0:02:54]}  Bxf6 {[%clk 0:02:46]} 9. Bd3 {[%clk 0:02:54]}  O-O {[%clk 0:02:45]} 10. O-O {[%clk 0:02:53]}  c5 {[%clk 0:02:42]} 11. c3 {[%clk 0:02:49]}  cxd4 {[%clk 0:02:41]} 12. Nxd4 {[%clk 0:02:49]}  Bxd4 {[%clk 0:02:34]} 13. cxd4 {[%clk 0:02:50]}  Bd7 {[%clk 0:02:34]} 14. Be4 {[%clk 0:02:48]}  Qb6 {[%clk 0:02:31]} 15. d5 {[%clk 0:02:43]}  Rfd8 {[%clk 0:02:29]} 16. Qf3 {[%clk 0:02:30]}  e5 {[%clk 0:02:16]} 17. b3 {[%clk 0:02:23]}  Qd6 {[%clk 0:02:16]} 18. Rac1 {[%clk 0:02:15]}  g6 {[%clk 0:02:15]} 19. g4 {[%clk 0:02:15]}  Rac8 {[%clk 0:02:12]} 20. g5 {[%clk 0:02:07]}  Kg7 {[%clk 0:02:10]} 21. Qe3 {[%clk 0:02:01]}  b6 {[%clk 0:02:05]} 22. Rxc8 {[%clk 0:01:55]}  Rxc8 {[%clk 0:02:06]} 23. Rc1 {[%clk 0:01:56]}  Rxc1+ {[%clk 0:02:06]} 24. Qxc1 {[%clk 0:01:57]}  Qb4 {[%clk 0:02:07]} 25. Qe3 {[%clk 0:01:53]}  Qd4 {[%clk 0:02:01]} 26. Qxd4 {[%clk 0:01:50]}  exd4 {[%clk 0:02:02]} 27. Kf1 {[%clk 0:01:36]}  Bb5+ {[%clk 0:02:01]} 28. Ke1 {[%clk 0:01:35]}  Kf8 {[%clk 0:02:02]} 29. Kd2 {[%clk 0:01:31]}  Ke7 {[%clk 0:02:02]} 30. Bd3 {[%clk 0:01:31]}  Bd7 {[%clk 0:02:02]} 31. Be4 {[%clk 0:01:25]}  Kd6 {[%clk 0:02:01]} 32. Kd3 {[%clk 0:01:22]}  Ke5 {[%clk 0:02:02]} 33. a4 {[%clk 0:01:12]}  Bh3 {[%clk 0:01:55]} 34. f4+ {[%clk 0:00:58]}  Kxf4 {[%clk 0:01:54]} 35. Kxd4 {[%clk 0:00:59]}  Kxg5 {[%clk 0:01:55]} 36. Ke5 {[%clk 0:01:00]}  f5 {[%clk 0:01:54]} 37. Bf3 {[%clk 0:00:55]}  f4 {[%clk 0:01:54]} 38. d6 {[%clk 0:00:55]}  Bd7 {[%clk 0:01:53]} 39. Bd5 {[%clk 0:00:42]}  Kg4 {[%clk 0:01:47]} 40. Be6+ {[%clk 0:00:42]}  Bxe6 {[%clk 0:01:47]} 41. Kxe6 {[%clk 0:00:43]}  f3 {[%clk 0:01:48]} 42. d7 {[%clk 0:00:44]}  f2 {[%clk 0:01:49]} 43. d8=Q {[%clk 0:00:44]}  f1=Q {[%clk 0:01:49]} 44. Qc7 {[%clk 0:00:29]}  Qf5+ {[%clk 0:01:44]} 45. Ke7 {[%clk 0:00:29]}  Qe4+ {[%clk 0:01:34]} 46. Kd8 {[%clk 0:00:19]}  Qd5+ {[%clk 0:01:30]} 47. Kc8 {[%clk 0:00:18]}  Qxb3 {[%clk 0:01:27]} 48. Qxa7 {[%clk 0:00:18]}  Qg8+ {[%clk 0:01:26]} 49. Kb7 {[%clk 0:00:17]}  Kh3 {[%clk 0:01:16]} 50. Qxb6 {[%clk 0:00:14]}  Kxh2 {[%clk 0:01:08]} 51. a5 {[%clk 0:00:14]}  g5 {[%clk 0:01:09]} 52. a6 {[%clk 0:00:14]}  Qd5+ {[%clk 0:01:00]} 53. Qc6 {[%clk 0:00:13]}  Qb3+ {[%clk 0:00:59]} 54. Qb6 {[%clk 0:00:13]}  Qf3+ {[%clk 0:00:59]} 55. Kb8 {[%clk 0:00:12]}  g4 {[%clk 0:00:56]} 56. a7 {[%clk 0:00:12]}  Qf8+ {[%clk 0:00:56]} 57. Kb7 {[%clk 0:00:12]}  Qf3+ {[%clk 0:00:56]} 58. Qc6 {[%clk 0:00:12]}  Qb3+ {[%clk 0:00:52]} 59. Kc8 {[%clk 0:00:09]}  Qg8+ {[%clk 0:00:47]} 60. Kb7 {[%clk 0:00:09]}  Qb3+ {[%clk 0:00:46]} 61. Kc7 {[%clk 0:00:09]}  Qf7+ {[%clk 0:00:45]} 62. Qd7 {[%clk 0:00:07]}  Qc4+ {[%clk 0:00:45]} 63. Qc6 {[%clk 0:00:07]}  Qf7+ {[%clk 0:00:45]} 64. Qd7 {[%clk 0:00:06]}  Qc4+ {[%clk 0:00:43]} 65. Qc6 {[%clk 0:00:07]}  Qf7+ {[%clk 0:00:42]} 1/2-1/2


[Site "https://www.chess.com"]

[Event "Titled Tuesday Blitz November 22 Early 2022"]
[White "Maung, Maung Kyaw Zaw Hein"]
[Black "Tanenbaum, Zachary"]
[WhiteFideId "13001698"]
[BlackFideId "2060850"]
[WhiteElo "2019"]
[BlackElo "2175"]
[Result "0-1"]
[Round "02"]
[TimeControl "180+1"]
[Date "2022.11.23"]
[WhiteClock "0:00:01"]
[BlackClock "0:00:15"]

1. Nf3 {[%clk 0:03:00]}  d5 {[%clk 0:02:59]} 2. d4 {[%clk 0:03:00]}  Nf6 {[%clk 0:02:58]} 3. c4 {[%clk 0:03:00]}  dxc4 {[%clk 0:02:59]} 4. e3 {[%clk 0:02:59]}  Bg4 {[%clk 0:02:59]} 5. Bxc4 {[%clk 0:02:59]}  e6 {[%clk 0:02:59]} 6. O-O {[%clk 0:02:59]}  Be7 {[%clk 0:02:53]} 7. h3 {[%clk 0:02:59]}  Bh5 {[%clk 0:02:53]} 8. Nc3 {[%clk 0:02:58]}  Nbd7 {[%clk 0:02:49]} 9. a3 {[%clk 0:02:55]}  O-O {[%clk 0:02:48]} 10. b4 {[%clk 0:02:55]}  a5 {[%clk 0:02:47]} 11. b5 {[%clk 0:02:53]}  Nb6 {[%clk 0:02:46]} 12. Bb3 {[%clk 0:02:49]}  Nfd5 {[%clk 0:02:39]} 13. Nxd5 {[%clk 0:02:49]}  exd5 {[%clk 0:02:39]} 14. a4 {[%clk 0:02:45]}  Bd6 {[%clk 0:02:38]} 15. Ba3 {[%clk 0:02:32]}  Bxa3 {[%clk 0:02:35]} 16. Rxa3 {[%clk 0:02:31]}  Qd6 {[%clk 0:02:34]} 17. Ra2 {[%clk 0:02:29]}  f5 {[%clk 0:02:26]} 18. Qe2 {[%clk 0:02:14]}  Rae8 {[%clk 0:02:26]} 19. Re1 {[%clk 0:02:07]}  Kh8 {[%clk 0:02:25]} 20. g4 {[%clk 0:01:59]}  fxg4 {[%clk 0:02:24]} 21. Ne5 {[%clk 0:02:00]}  Nd7 {[%clk 0:01:52]} 22. hxg4 {[%clk 0:01:52]}  Nxe5 {[%clk 0:01:48]} 23. dxe5 {[%clk 0:01:51]}  Rxe5 {[%clk 0:01:33]} 24. f4 {[%clk 0:01:01]}  Rxf4 {[%clk 0:01:07]} 25. exf4 {[%clk 0:01:01]}  Rxe2 {[%clk 0:01:08]} 26. Raxe2 {[%clk 0:01:01]}  Qg6 {[%clk 0:01:00]} 27. Rg2 {[%clk 0:00:16]}  h6 {[%clk 0:00:50]} 28. gxh5 {[%clk 0:00:16]}  Qxh5 {[%clk 0:00:33]} 29. Bd1 {[%clk 0:00:11]}  Qf7 {[%clk 0:00:31]} 30. Rf1 {[%clk 0:00:11]}  c6 {[%clk 0:00:30]} 31. bxc6 {[%clk 0:00:10]}  bxc6 {[%clk 0:00:31]} 32. f5 {[%clk 0:00:10]}  Qf6 {[%clk 0:00:31]} 33. Rg6 {[%clk 0:00:10]}  Qd4+ {[%clk 0:00:30]} 34. Kg2 {[%clk 0:00:10]}  Qd2+ {[%clk 0:00:30]} 35. Kh1 {[%clk 0:00:10]}  Qd3 {[%clk 0:00:27]} 36. Kg1 {[%clk 0:00:06]}  Qe3+ {[%clk 0:00:26]} 37. Rf2 {[%clk 0:00:06]}  Qe1+ {[%clk 0:00:25]} 38. Rf1 {[%clk 0:00:07]}  Qe3+ {[%clk 0:00:25]} 39. Kg2 {[%clk 0:00:06]}  Qe4+ {[%clk 0:00:23]} 40. Kg1 {[%clk 0:00:04]}  Kh7 {[%clk 0:00:20]} 41. Re6 {[%clk 0:00:03]}  Qd4+ {[%clk 0:00:20]} 42. Kg2 {[%clk 0:00:04]}  Qd2+ {[%clk 0:00:20]} 43. Kg1 {[%clk 0:00:02]}  Qg5+ {[%clk 0:00:19]} 44. Kf2 {[%clk 0:00:03]}  d4 {[%clk 0:00:18]} 45. Bf3 {[%clk 0:00:02]}  Qxf5 {[%clk 0:00:17]} 46. Rxc6 {[%clk 0:00:01]}  d3 {[%clk 0:00:17]} 47. Rd1 {[%clk 0:00:01]}  g5 {[%clk 0:00:15]} 0-1


[Site "https://www.chess.com"]

[Event "Titled Tuesday Blitz November 22 Early 2022"]
[White "Mayaud, Raphael"]
[Black "Ibadov, Dashgyn"]
[WhiteFideId "627151"]
[BlackFideId "24107514"]
[WhiteElo "2191"]
[BlackElo "2208"]
[Result "1-0"]
[Round "02"]
[TimeControl "180+1"]
[Date "2022.11.23"]
[WhiteClock "0:00:08"]
[BlackClock "0:00:02"]

1. d4 {[%clk 0:02:54]}  Nf6 {[%clk 0:02:55]} 2. Bg5 {[%clk 0:02:54]}  Ne4 {[%clk 0:02:55]} 3. Bf4 {[%clk 0:02:54]}  d5 {[%clk 0:02:55]} 4. e3 {[%clk 0:02:54]}  c5 {[%clk 0:02:54]} 5. Bd3 {[%clk 0:02:54]}  Nc6 {[%clk 0:02:54]} 6. Bxe4 {[%clk 0:02:54]}  dxe4 {[%clk 0:02:55]} 7. d5 {[%clk 0:02:54]}  g5 {[%clk 0:02:55]} 8. Bxg5 {[%clk 0:02:42]}  Bg7 {[%clk 0:02:54]} 9. Nc3 {[%clk 0:02:39]}  Bxc3+ {[%clk 0:02:21]} 10. bxc3 {[%clk 0:02:38]}  Ne5 {[%clk 0:02:19]} 11. Ne2 {[%clk 0:02:23]}  b6 {[%clk 0:02:08]} 12. Ng3 {[%clk 0:02:06]}  Bb7 {[%clk 0:02:08]} 13. Nf5 {[%clk 0:01:32]}  f6 {[%clk 0:01:36]} 14. Qh5+ {[%clk 0:01:18]}  Ng6 {[%clk 0:01:36]} 15. Bf4 {[%clk 0:00:48]}  Qxd5 {[%clk 0:01:28]} 16. O-O {[%clk 0:00:45]}  e6 {[%clk 0:01:09]} 17. Ng3 {[%clk 0:00:41]}  Qxh5 {[%clk 0:01:06]} 18. Nxh5 {[%clk 0:00:41]}  Kf7 {[%clk 0:01:04]} 19. Rfd1 {[%clk 0:00:41]}  Rad8 {[%clk 0:01:00]} 20. a4 {[%clk 0:00:39]}  Bd5 {[%clk 0:00:30]} 21. h3 {[%clk 0:00:32]}  Bc4 {[%clk 0:00:19]} 22. Bg3 {[%clk 0:00:29]}  Be2 {[%clk 0:00:14]} 23. Rxd8 {[%clk 0:00:27]}  Rxd8 {[%clk 0:00:15]} 24. Nf4 {[%clk 0:00:27]}  Nxf4 {[%clk 0:00:15]} 25. Bxf4 {[%clk 0:00:27]}  e5 {[%clk 0:00:15]} 26. Bg3 {[%clk 0:00:25]}  Rd2 {[%clk 0:00:15]} 27. Rc1 {[%clk 0:00:25]}  Bd1 {[%clk 0:00:14]} 28. a5 {[%clk 0:00:20]}  Bxc2 {[%clk 0:00:13]} 29. axb6 {[%clk 0:00:19]}  axb6 {[%clk 0:00:14]} 30. Ra1 {[%clk 0:00:15]}  Bd3 {[%clk 0:00:10]} 31. Ra7+ {[%clk 0:00:14]}  Ke6 {[%clk 0:00:08]} 32. Rb7 {[%clk 0:00:15]}  b5 {[%clk 0:00:06]} 33. Rb6+ {[%clk 0:00:13]}  Ke7 {[%clk 0:00:04]} 34. Bh4 {[%clk 0:00:14]}  Rc2 {[%clk 0:00:04]} 35. Rxf6 {[%clk 0:00:14]}  Rxc3 {[%clk 0:00:02]} 36. Rh6+ {[%clk 0:00:11]}  Kd7 {[%clk 0:00:02]} 37. Rxh7+ {[%clk 0:00:12]}  Kc6 {[%clk 0:00:03]} 38. Rh6+ {[%clk 0:00:12]}  Kd5 {[%clk 0:00:04]} 39. Be7 {[%clk 0:00:11]}  Rc1+ {[%clk 0:00:04]} 40. Kh2 {[%clk 0:00:10]}  b4 {[%clk 0:00:04]} 41. Rd6+ {[%clk 0:00:09]}  Kc4 {[%clk 0:00:04]} 42. Rc6 {[%clk 0:00:09]}  Kb5 {[%clk 0:00:04]} 43. Rc8 {[%clk 0:00:08]}  b3 {[%clk 0:00:05]} 44. h4 {[%clk 0:00:04]}  Rc2 {[%clk 0:00:05]} 45. Rb8+ {[%clk 0:00:05]}  Kc4 {[%clk 0:00:05]} 46. Bf6 {[%clk 0:00:05]}  Kd5 {[%clk 0:00:04]} 47. Bxe5 {[%clk 0:00:06]}  Kxe5 {[%clk 0:00:04]} 48. Kg3 {[%clk 0:00:07]}  b2 {[%clk 0:00:04]} 49. h5 {[%clk 0:00:07]}  Rd2 {[%clk 0:00:02]} 50. h6 {[%clk 0:00:07]}  b1=Q {[%clk 0:00:03]} 51. Re8+ {[%clk 0:00:06]}  Kf6 {[%clk 0:00:03]} 52. h7 {[%clk 0:00:07]}  Qf1 {[%clk 0:00:01]} 53. h8=Q+ {[%clk 0:00:07]}  Kf7 {[%clk 0:00:01]} 54. Qf8+ {[%clk 0:00:07]}  Kg6 {[%clk 0:00:02]} 55. Re6+ {[%clk 0:00:08]}  Kg5 {[%clk 0:00:02]} 56. Qf6+ {[%clk 0:00:08]} 1-0


[Site "https://www.chess.com"]

[Event "Titled Tuesday Blitz November 22 Early 2022"]
[White "Mohammed, Zozek Salah Mohammed"]
[Black "Grabinsky, Vladimir"]
[WhiteFideId "4803361"]
[BlackFideId "14107074"]
[WhiteElo "2199"]
[BlackElo "2198"]
[Result "1-0"]
[Round "02"]
[TimeControl "180+1"]
[Date "2022.11.23"]
[WhiteClock "0:01:36"]
[BlackClock "0:00:16"]

1. d4 {[%clk 0:03:00]}  Nf6 {[%clk 0:02:54]} 2. Nf3 {[%clk 0:03:00]}  d5 {[%clk 0:02:54]} 3. c4 {[%clk 0:03:00]}  e6 {[%clk 0:02:53]} 4. g3 {[%clk 0:03:00]}  dxc4 {[%clk 0:02:46]} 5. Bg2 {[%clk 0:02:59]}  Nc6 {[%clk 0:02:41]} 6. O-O {[%clk 0:02:59]}  a6 {[%clk 0:02:40]} 7. a4 {[%clk 0:02:53]}  Rb8 {[%clk 0:02:25]} 8. a5 {[%clk 0:02:32]}  Bb4 {[%clk 0:02:10]} 9. Bd2 {[%clk 0:02:29]}  Bxd2 {[%clk 0:02:06]} 10. Qxd2 {[%clk 0:02:29]}  O-O {[%clk 0:02:02]} 11. Na3 {[%clk 0:02:23]}  Qd5 {[%clk 0:01:49]} 12. e3 {[%clk 0:02:21]}  Qxa5 {[%clk 0:01:46]} 13. Qc2 {[%clk 0:02:17]}  b5 {[%clk 0:01:42]} 14. Nxc4 {[%clk 0:02:06]}  Qb4 {[%clk 0:01:31]} 15. Nce5 {[%clk 0:01:55]}  Nxe5 {[%clk 0:01:26]} 16. Nxe5 {[%clk 0:01:55]}  Bb7 {[%clk 0:01:20]} 17. Qxc7 {[%clk 0:01:50]}  Bxg2 {[%clk 0:01:17]} 18. Kxg2 {[%clk 0:01:51]}  Qxb2 {[%clk 0:01:12]} 19. Rxa6 {[%clk 0:01:51]}  Rfc8 {[%clk 0:01:03]} 20. Qxf7+ {[%clk 0:01:48]}  Kh8 {[%clk 0:01:02]} 21. Qxe6 {[%clk 0:01:46]}  h6 {[%clk 0:00:30]} 22. Nf7+ {[%clk 0:01:39]}  Kh7 {[%clk 0:00:31]} 23. Qf5+ {[%clk 0:01:38]}  Kg8 {[%clk 0:00:21]} 24. Nxh6+ {[%clk 0:01:37]}  gxh6 {[%clk 0:00:19]} 25. Qg6+ {[%clk 0:01:36]}  Kh8 {[%clk 0:00:16]} 26. Qxf6+ {[%clk 0:01:36]} 1-0


[Site "https://www.chess.com"]

[Event "Titled Tuesday Blitz November 22 Early 2022"]
[White "Movahed, Sina"]
[Black "Johnson, Donald"]
[WhiteFideId "42520835"]
[BlackFideId "30949122"]
[WhiteElo "2225"]
[BlackElo "2132"]
[Result "1-0"]
[Round "02"]
[TimeControl "180+1"]
[Date "2022.11.23"]
[WhiteClock "0:02:18"]
[BlackClock "0:00:57"]

1. e4 {[%clk 0:03:00]}  c5 {[%clk 0:02:56]} 2. Nf3 {[%clk 0:03:00]}  d6 {[%clk 0:02:55]} 3. d4 {[%clk 0:02:59]}  cxd4 {[%clk 0:02:56]} 4. Nxd4 {[%clk 0:03:00]}  Nf6 {[%clk 0:02:55]} 5. Nc3 {[%clk 0:03:00]}  a6 {[%clk 0:02:55]} 6. Bg5 {[%clk 0:03:01]}  e6 {[%clk 0:02:55]} 7. f4 {[%clk 0:02:57]}  Be7 {[%clk 0:02:54]} 8. Qf3 {[%clk 0:02:57]}  Nbd7 {[%clk 0:02:53]} 9. Bc4 {[%clk 0:02:52]}  Nc5 {[%clk 0:02:40]} 10. O-O-O {[%clk 0:02:49]}  Qc7 {[%clk 0:02:30]} 11. Rhe1 {[%clk 0:02:42]}  Ncxe4 {[%clk 0:02:26]} 12. Nxe4 {[%clk 0:02:42]}  Qxc4 {[%clk 0:02:25]} 13. Nf5 {[%clk 0:02:37]}  Nxe4 {[%clk 0:01:50]} 14. Rxe4 {[%clk 0:02:31]}  Qxe4 {[%clk 0:01:31]} 15. Qxe4 {[%clk 0:02:30]}  Bxg5 {[%clk 0:01:30]} 16. Nxd6+ {[%clk 0:02:28]}  Ke7 {[%clk 0:01:27]} 17. fxg5 {[%clk 0:02:29]}  Rd8 {[%clk 0:01:22]} 18. Qb4 {[%clk 0:02:26]}  Rd7 {[%clk 0:00:58]} 19. Nxc8+ {[%clk 0:02:24]}  Kd8 {[%clk 0:00:57]} 20. Rxd7+ {[%clk 0:02:18]}  Kxd7 {[%clk 0:00:57]} 21. Nb6+ {[%clk 0:02:18]} 1-0


[Site "https://www.chess.com"]

[Event "Titled Tuesday Blitz November 22 Early 2022"]
[White "Nanditha, V"]
[Black "Omariev, Maksim"]
[WhiteFideId "46626697"]
[BlackFideId "4193423"]
[WhiteElo "1564"]
[BlackElo "2445"]
[Result "0-1"]
[Round "02"]
[TimeControl "180+1"]
[Date "2022.11.23"]
[WhiteClock "0:00:17"]
[BlackClock "0:01:25"]

1. e4 {[%clk 0:03:00]}  c5 {[%clk 0:02:54]} 2. Nf3 {[%clk 0:02:59]}  d6 {[%clk 0:02:54]} 3. d4 {[%clk 0:02:57]}  cxd4 {[%clk 0:02:55]} 4. Nxd4 {[%clk 0:02:58]}  Nf6 {[%clk 0:02:51]} 5. Nc3 {[%clk 0:02:50]}  a6 {[%clk 0:02:50]} 6. Be2 {[%clk 0:02:48]}  e6 {[%clk 0:02:50]} 7. Be3 {[%clk 0:02:45]}  Be7 {[%clk 0:02:48]} 8. Qd2 {[%clk 0:02:45]}  O-O {[%clk 0:02:47]} 9. O-O-O {[%clk 0:02:45]}  b5 {[%clk 0:02:43]} 10. f3 {[%clk 0:02:45]}  Bb7 {[%clk 0:02:33]} 11. h4 {[%clk 0:02:44]}  b4 {[%clk 0:02:26]} 12. Na4 {[%clk 0:02:43]}  d5 {[%clk 0:02:27]} 13. e5 {[%clk 0:02:41]}  Nfd7 {[%clk 0:02:27]} 14. Bf4 {[%clk 0:02:11]}  Qa5 {[%clk 0:02:23]} 15. b3 {[%clk 0:02:05]}  Nc6 {[%clk 0:02:08]} 16. Kb1 {[%clk 0:01:27]}  Ncxe5 {[%clk 0:02:02]} 17. Bxe5 {[%clk 0:01:07]}  Nxe5 {[%clk 0:02:00]} 18. f4 {[%clk 0:01:08]}  Nc6 {[%clk 0:01:56]} 19. g4 {[%clk 0:00:39]}  Nxd4 {[%clk 0:01:46]} 20. Qxd4 {[%clk 0:00:40]}  Bc6 {[%clk 0:01:47]} 21. Nb2 {[%clk 0:00:36]}  Bf6 {[%clk 0:01:46]} 22. Qd2 {[%clk 0:00:30]}  Bc3 {[%clk 0:01:46]} 23. Qc1 {[%clk 0:00:30]}  Bb5 {[%clk 0:01:46]} 24. Bd3 {[%clk 0:00:29]}  Rfc8 {[%clk 0:01:42]} 25. g5 {[%clk 0:00:25]}  Rc6 {[%clk 0:01:37]} 26. h5 {[%clk 0:00:24]}  Rac8 {[%clk 0:01:38]} 27. Rh2 {[%clk 0:00:22]}  Qa3 {[%clk 0:01:33]} 28. g6 {[%clk 0:00:20]}  fxg6 {[%clk 0:01:33]} 29. hxg6 {[%clk 0:00:20]}  h6 {[%clk 0:01:33]} 30. f5 {[%clk 0:00:19]}  e5 {[%clk 0:01:28]} 31. Bxb5 {[%clk 0:00:19]}  axb5 {[%clk 0:01:26]} 32. Nd3 {[%clk 0:00:20]}  Qxa2+ {[%clk 0:01:24]} 33. Kxa2 {[%clk 0:00:19]}  Ra6+ {[%clk 0:01:25]} 34. Kb1 {[%clk 0:00:17]}  Ra1# {[%clk 0:01:25]} 0-1


[Site "https://www.chess.com"]